fUSD/lending_fUSD_20251023
["ID","MTS","AMOUNT","RATE_DAILY","PERIOD"]
[392158220,1761220243154,-500.0,0.00044445,120]
[392158222,1761220243164,-500.0,0.00044445,120]
[392158224,1761220243174,-908.67,0.00044445,120]
[392158226,1761220243183,-500.0,0.00044445,120]
[392158228,1761220243193,-2046.1037126,0.00044512,15]
[392158230,1761220243204,-3256.86367,0.0004456,24]
[392158232,1761220243214,-151.51733266,0.00044579,28]
[392158234,1761220243223,-803.51844873,0.00044586,16]
[392158236,1761220243233,-2818.0,0.00044623,7]
[392158238,1761220243243,-168.0,0.00044638,2]
[392158240,1761220243253,-2046.1037126,0.00044641,15]
[392158242,1761220243263,-500.0,0.00044657,120]
[392158244,1761220243272,-500.0,0.00044657,120]
[392158246,1761220243281,-500.0,0.00044657,120]
[392158248,1761220243291,-598.92,0.00044657,120]
[392158250,1761220243301,-644.06,0.00044657,120]
[392158252,1761220243311,-510.65,0.00044657,120]
[392158254,1761220243320,-500.0,0.00044657,120]
[392158256,1761220243330,-573.33,0.00044657,120]
[392158257,1761220243339,-500.0,0.00044657,120]
[392158259,1761220243348,-210.72,0.00044657,30]
[392158262,1761220243359,-500.0,0.00044657,120]
[392158264,1761220243369,-500.0,0.00044657,120]
[392158266,1761220243379,-500.0,0.00044657,120]
[392158268,1761220243389,-500.0,0.00044657,120]
[392158270,1761220243398,-500.0,0.00044657,2]
[392158272,1761220243408,-500.0,0.00044657,120]
[392158274,1761220243417,-799.78,0.00044657,120]
[392158276,1761220243427,-500.0,0.00044657,120]
[392158278,1761220243437,-500.0,0.00044657,120]
[392158280,1761220243451,-500.0,0.00044657,12]
[392158282,1761220243460,-300.0,0.00044657,120]
[392158284,1761220243470,-500.0,0.00044657,120]
[392158286,1761220243479,-500.0,0.00044657,120]
[392158288,1761220243492,-500.0,0.00044657,120]
[392158290,1761220243503,-500.0,0.00044657,120]
[392158292,1761220243513,-500.0,0.00044657,120]
[392158294,1761220243524,-535.74,0.00044657,120]
[392158296,1761220243534,-500.0,0.00044657,120]
[392158298,1761220243544,-500.0,0.00044657,120]
[392158300,1761220243554,-509.49,0.00044657,120]
[392158302,1761220243564,-518.85,0.00044657,120]
[392158304,1761220243573,-500.0,0.00044657,120]
[392158306,1761220243583,-1041.62,0.00044657,120]
[392158308,1761220243593,-642.27,0.00044657,120]
[392158310,1761220243603,-550.18,0.00044657,120]
[392158312,1761220243613,-518.73,0.00044657,120]
[392158314,1761220243622,-500.0,0.00044657,120]
[392158316,1761220243631,-535.67,0.00044657,120]
[392158318,1761220243641,-452.17645779,0.00044657,120]
[392158320,1761220243651,-603.64,0.00044657,120]
[392158322,1761220243661,-500.0,0.00044657,120]
[392158330,1761220243793,-551.47,0.00044657,120]
[392158332,1761220243802,-610.92,0.00044657,120]
[392158334,1761220243812,-737.75,0.00044657,120]
[392158336,1761220243821,-500.0,0.00044657,120]
[392158338,1761220243831,-500.0,0.00044657,120]
[392158340,1761220243840,-500.0,0.00044657,120]
[392158342,1761220243850,-500.0,0.00044657,120]
[392158344,1761220243859,-500.0,0.00044657,120]
[392158346,1761220243869,-507.63,0.00044657,120]
[392158348,1761220243878,-500.0,0.00044657,120]
[392158350,1761220243886,-500.0,0.00044657,120]
[392158352,1761220243895,-500.0,0.00044657,120]
[392158354,1761220243904,-507.83,0.00044657,120]
[392158356,1761220243914,-672.01,0.00044657,120]
[392158357,1761220243923,-500.0,0.00044657,120]
[392158359,1761220243934,-500.0,0.00044657,120]
[392158361,1761220243949,-500.0,0.00044657,120]
[392158363,1761220243959,-168.0,0.0004466,2]
[392158365,1761220243968,-500.0,0.0004471,120]
[392158367,1761220243977,-500.0,0.0004471,120]
[392158369,1761220243987,-500.0,0.0004471,120]
[392158371,1761220243996,-500.0,0.0004471,120]
[392158373,1761220244005,-500.0,0.0004471,120]
[392158375,1761220244014,-500.0,0.0004471,120]
[392158377,1761220244023,-500.0,0.0004471,120]
[392158379,1761220244031,-2280.27,0.0004471,120]
[392158381,1761220244042,-500.0,0.0004471,120]
[392158383,1761220244051,-500.0,0.0004471,120]
[392158384,1761220244060,-500.0,0.0004471,120]
[392158386,1761220244070,-500.0,0.0004471,120]
[392158388,1761220244079,-500.0,0.0004471,120]
[392158390,1761220244089,-1351.52,0.0004471,120]
[392158392,1761220244099,-500.0,0.0004471,120]
[392158394,1761220244110,-500.0,0.0004471,30]
[392158396,1761220244120,-500.0,0.0004471,120]
[392158398,1761220244129,-500.0,0.0004471,120]
[392158400,1761220244139,-500.0,0.0004471,120]
[392158402,1761220244149,-500.0,0.0004471,120]
[392158405,1761220244159,-500.0,0.0004471,120]
[392158406,1761220244169,-500.0,0.0004471,120]
[392158408,1761220244178,-500.0,0.0004471,120]
[392158410,1761220244188,-500.0,0.0004471,120]
[392158412,1761220244197,-1927.06,0.0004471,30]
[392158414,1761220244206,-500.0,0.0004471,120]
[392158416,1761220244216,-500.0,0.0004471,120]
[392158418,1761220244225,-500.0,0.0004471,120]
[392158420,1761220244234,-500.0,0.0004471,30]
[392158422,1761220244242,-1185.24,0.0004471,120]
[392158424,1761220244251,-500.0,0.0004471,120]
[392158426,1761220244260,-500.0,0.0004471,120]
[392158428,1761220244269,-500.0,0.0004471,120]
[392158430,1761220244279,-500.0,0.0004471,120]
[392158432,1761220244288,-500.0,0.0004471,120]
[392158434,1761220244297,-500.0,0.0004471,120]
[392158435,1761220244306,-1773.82,0.0004471,120]
[392158437,1761220244315,-500.0,0.0004471,120]
[392158439,1761220244326,-500.0,0.0004471,120]
[392158441,1761220244336,-500.0,0.0004471,120]
[392158443,1761220244345,-500.0,0.0004471,120]
[392158445,1761220244356,-500.0,0.0004471,120]
[392158447,1761220244366,-500.0,0.0004471,60]
[392158449,1761220244375,-500.0,0.0004471,120]
[392158451,1761220244384,-500.0,0.0004471,120]
[392158453,1761220244393,-500.0,0.0004471,120]
[392158455,1761220244403,-5633.52,0.0004471,120]
[392158457,1761220244414,-500.0,0.0004471,120]
[392158459,1761220244423,-500.0,0.00044719,120]
[392158461,1761220244432,-500.0,0.00044719,30]
[392158463,1761220244442,-500.0,0.00044719,120]
[392158465,1761220244456,-500.0,0.00044719,120]
[392158467,1761220244465,-500.0,0.00044719,120]
[392158469,1761220244475,-500.0,0.00044719,120]
[392158470,1761220244484,-500.0,0.00044719,120]
[392158471,1761220244494,-500.0,0.00044719,120]
[392158472,1761220244503,-715.84,0.00044719,120]
[392158473,1761220244516,-709.53,0.00044719,120]
[392158474,1761220244526,-500.0,0.00044719,2]
[392158475,1761220244535,-500.0,0.00044719,120]
[392158476,1761220244543,-500.0,0.00044719,120]
[392158477,1761220244552,-500.0,0.00044719,120]
[392158478,1761220244561,-500.0,0.00044719,120]
[392158479,1761220244571,-561.42,0.00044719,120]
[392158480,1761220244582,-721.57,0.00044719,120]
[392158481,1761220244591,-500.0,0.00044719,120]
[392158482,1761220244600,-624.39,0.00044719,120]
[392158483,1761220244609,-500.0,0.00044719,120]
[392158484,1761220244618,-501.86452236,0.00044719,120]
[392158485,1761220244627,-500.0,0.00044719,120]
[392158486,1761220244636,-500.0,0.00044719,120]
[392158487,1761220244645,-500.0,0.00044719,120]
[392158488,1761220244655,-402.21384511,0.00044719,120]
[392158489,1761220244664,-908.67,0.00044719,120]
[392158490,1761220244673,-500.0,0.00044719,120]
[392158491,1761220244682,-433.0,0.00044741,120]
[392158492,1761220244691,-1000.0,0.00044743,10]
[392158493,1761220244700,-803.51844873,0.00044758,17]
[392158495,1761220244710,-2046.1037126,0.00044771,15]
[392158497,1761220244719,-168.0,0.00044775,2]
[392158498,1761220244729,-182.48,0.00044786,14]
[392158499,1761220244739,-433.0,0.00044816,120]
[392158500,1761220244749,-1425.0,0.00044869,2]
[392158501,1761220244758,-200.0,0.00044883,7]
[392158502,1761220244767,-1000.0,0.00044899,30]
[392158503,1761220244777,-155.48,0.000449,120]
[392158504,1761220244787,-197.79,0.000449,120]
[392158505,1761220244796,-2046.1037126,0.000449,15]
[392158506,1761220244806,-1718.32218737,0.000449,2]
[392158507,1761220244815,-289.35278212,0.000449,2]
[392158508,1761220244825,-403.76174364,0.000449,2]
[392158509,1761220244835,-719.02660738,0.0004492,120]
[392158510,1761220244844,-167.90258226,0.0004492,15]
[392158511,1761220244854,-151.51733266,0.0004492,28]
[392158512,1761220244863,-1718.32218735,0.00044925,2]
[392158513,1761220244872,-289.35278211,0.00044925,2]
[392158514,1761220244881,-803.51844873,0.0004493,17]
[392158515,1761220244891,-403.76174363,0.0004493,2]
[392158516,1761220244901,-500.0,0.00044931,120]
[392158517,1761220244910,-500.0,0.00044931,120]
[392158518,1761220244919,-500.0,0.00044931,120]
[392158519,1761220244929,-598.92,0.00044931,120]
[392158521,1761220244938,-644.06,0.00044931,120]
[392158522,1761220244948,-510.65,0.00044931,120]
[392158523,1761220244957,-500.0,0.00044931,120]
[392158524,1761220244966,-573.33,0.00044931,120]
[392158525,1761220244975,-500.0,0.00044931,120]
[392158526,1761220244984,-500.0,0.00044931,120]
[392158527,1761220244993,-500.0,0.00044931,120]
[392158528,1761220245003,-500.0,0.00044931,120]
[392158529,1761220245012,-500.0,0.00044931,120]
[392158530,1761220245022,-500.0,0.00044931,2]
[392158531,1761220245031,-500.0,0.00044931,120]
[392158532,1761220245040,-799.78,0.00044931,120]
[392158533,1761220245049,-500.0,0.00044931,120]
[392158534,1761220245058,-500.0,0.00044931,120]
[392158535,1761220245068,-500.0,0.00044931,12]
[392158536,1761220245077,-300.0,0.00044931,120]
[392158537,1761220245087,-500.0,0.00044931,120]
[392158538,1761220245096,-500.0,0.00044931,120]
[392158539,1761220245104,-500.0,0.00044931,120]
[392158540,1761220245114,-500.0,0.00044931,120]
[392158541,1761220245123,-500.0,0.00044931,120]
[392158542,1761220245132,-535.74,0.00044931,120]
[392158543,1761220245141,-500.0,0.00044931,120]
[392158544,1761220245150,-500.0,0.00044931,120]
[392158545,1761220245158,-509.49,0.00044931,120]
[392158546,1761220245167,-518.85,0.00044931,120]
[392158547,1761220245176,-500.0,0.00044931,120]
[392158548,1761220245185,-1041.62,0.00044931,120]
[392158549,1761220245194,-642.27,0.00044931,120]
[392158550,1761220245203,-550.18,0.00044931,120]
[392158551,1761220245214,-518.73,0.00044931,120]
[392158552,1761220245223,-500.0,0.00044931,120]
[392158553,1761220245233,-535.67,0.00044931,120]
[392158554,1761220245242,-603.64,0.00044931,120]
[392158555,1761220245252,-500.0,0.00044931,120]
[392158556,1761220245261,-551.47,0.00044931,120]
[392158557,1761220245270,-610.92,0.00044931,120]
[392158558,1761220245279,-737.75,0.00044931,120]
[392158559,1761220245292,-500.0,0.00044931,120]
[392158560,1761220245302,-500.0,0.00044931,120]
[392158561,1761220245312,-500.0,0.00044931,120]
[392158562,1761220245321,-500.0,0.00044931,120]
[392158563,1761220245330,-500.0,0.00044931,120]
[392158564,1761220245340,-507.63,0.00044931,120]
[392158565,1761220245350,-500.0,0.00044931,120]
[392158566,1761220245359,-500.0,0.00044931,120]
[392158567,1761220245368,-500.0,0.00044931,120]
[392158568,1761220245377,-507.83,0.00044931,120]
[392158569,1761220245387,-672.01,0.00044931,120]
[392158571,1761220245397,-500.0,0.00044931,120]
[392158572,1761220245406,-500.0,0.00044931,120]
[392158573,1761220245416,-500.0,0.00044931,120]
[392158574,1761220245425,-1718.32218735,0.0004495,2]
[392158575,1761220245435,-289.35278211,0.0004495,2]
[392158576,1761220245446,-3987.14074497,0.00044956,120]
[392158577,1761220245457,-3987.14074497,0.00044959,120]
[392158578,1761220245466,-3987.14074497,0.00044962,120]
[392158579,1761220245476,-4405.66762298,0.00044966,120]
[392158580,1761220245487,-500.0,0.00044973,10]
[392158581,1761220245497,-160.7305918,0.00044973,2]
[392158582,1761220245507,-501.44033426,0.00044973,10]
[392158583,1761220245518,-592.65085401,0.00044973,8]
[392158584,1761220245530,-562.54588796,0.00044973,10]
[392158585,1761220245539,-500.0,0.00044973,10]
[392158586,1761220245549,-500.0,0.00044973,10]
[392158587,1761220245559,-282.94741548,0.00044973,10]
[392158588,1761220245569,-269.82161165,0.00044973,10]
[392158589,1761220245579,-501.16569824,0.00044973,10]
[392158590,1761220245588,-160.46141013,0.00044973,10]
[392158591,1761220245597,-160.177328,0.00044973,7]
[392158592,1761220245607,-4405.66762298,0.00044975,120]
[392158593,1761220245616,-429.5027633,0.00044976,120]
[392158594,1761220245627,-300.2990892,0.0004498,120]
[392158595,1761220245637,-4405.66762298,0.00044982,120]
[392158596,1761220245646,-500.0,0.00044984,120]
[392158597,1761220245657,-500.0,0.00044984,120]
[392158598,1761220245666,-500.0,0.00044984,120]
[392158599,1761220245675,-500.0,0.00044984,120]
[392158600,1761220245684,-500.0,0.00044984,120]
[392158601,1761220245694,-500.0,0.00044984,120]
[392158602,1761220245703,-2280.27,0.00044984,120]
[392158603,1761220245713,-500.0,0.00044984,120]
[392158604,1761220245723,-500.0,0.00044984,120]
[392158605,1761220245732,-500.0,0.00044984,120]
[392158606,1761220245741,-500.0,0.00044984,120]
[392158607,1761220245751,-500.0,0.00044984,120]
[392158608,1761220245761,-1351.52,0.00044984,120]
[392158609,1761220245771,-500.0,0.00044984,120]
[392158610,1761220245781,-232.72,0.00044984,30]
[392158611,1761220245791,-500.0,0.00044984,120]
[392158612,1761220245801,-500.0,0.00044984,120]
[392158613,1761220245810,-500.0,0.00044984,120]
[392158614,1761220245820,-500.0,0.00044984,120]
[392158615,1761220245830,-500.0,0.00044984,120]
[392158616,1761220245840,-500.0,0.00044984,120]
[392158617,1761220245849,-500.0,0.00044984,120]
[392158618,1761220245858,-500.0,0.00044984,120]
[392158619,1761220245963,-1927.06,0.00044984,30]
[392158620,1761220245983,-500.0,0.00044984,120]
[392158621,1761220245993,-500.0,0.00044984,120]
[392158622,1761220246002,-500.0,0.00044984,120]
[392158623,1761220246011,-500.0,0.00044984,30]
[392158624,1761220246020,-1185.24,0.00044984,120]
[392158625,1761220246030,-521.87809009,0.00044984,120]
[392158626,1761220246039,-500.0,0.00044984,120]
[392158627,1761220246048,-500.0,0.00044984,120]
[392158628,1761220246058,-500.0,0.00044984,120]
[392158629,1761220246070,-500.0,0.00044984,120]
[392158630,1761220246080,-1773.82,0.00044984,120]
[392158631,1761220246089,-500.0,0.00044984,120]
[392158632,1761220246098,-500.0,0.00044984,120]
[392158633,1761220246107,-500.0,0.00044984,120]
[392158634,1761220246117,-500.0,0.00044984,120]
[392158635,1761220246127,-500.0,0.00044984,120]
[392158636,1761220246136,-500.0,0.00044984,60]
[392158637,1761220246145,-500.0,0.00044984,120]
[392158638,1761220246155,-500.0,0.00044984,120]
[392158639,1761220246163,-500.0,0.00044984,120]
[392158640,1761220246173,-5633.52,0.00044984,120]
[392158641,1761220246182,-500.0,0.00044984,120]
[392158642,1761220246191,-3987.14074497,0.00044988,120]
[392158643,1761220246200,-4405.66762298,0.00044989,120]
[392158644,1761220246210,-429.5027633,0.00044989,120]
[392158645,1761220246219,-500.0,0.00044993,120]
[392158646,1761220246228,-500.0,0.00044993,30]
[392158647,1761220246238,-500.0,0.00044993,120]
[392158648,1761220246247,-500.0,0.00044993,120]
[392158649,1761220246256,-500.0,0.00044993,120]
[392158650,1761220246266,-500.0,0.00044993,120]
[392158651,1761220246276,-500.0,0.00044993,120]
[392158652,1761220246285,-500.0,0.00044993,120]
[392158653,1761220246295,-715.84,0.00044993,120]
[392158654,1761220246304,-709.53,0.00044993,120]
[392158655,1761220246314,-500.0,0.00044993,2]
[392158656,1761220246323,-500.0,0.00044993,120]
[392158657,1761220246332,-500.0,0.00044993,120]
[392158658,1761220246342,-500.0,0.00044993,120]
[392158659,1761220246351,-500.0,0.00044993,120]
[392158660,1761220246361,-561.42,0.00044993,120]
[392158661,1761220246371,-721.57,0.00044993,120]
[392158662,1761220246380,-500.0,0.00044993,120]
[392158663,1761220246390,-624.39,0.00044993,120]
[392158664,1761220246399,-500.0,0.00044993,120]
[392158665,1761220246408,-500.0,0.00044993,120]
[392158666,1761220246418,-500.0,0.00044993,120]
[392158667,1761220246427,-500.0,0.00044993,120]
[392158668,1761220246437,-908.67,0.00044993,120]
[392158669,1761220246451,-500.0,0.00044993,120]
[392158670,1761220246462,-8500.7817282,0.00044998,120]
[392158671,1761220246471,-429.5027633,0.00044998,120]
[392158672,1761220246480,-429.5027633,0.00044999,120]
[392158673,1761220246491,-1497.54823266,0.00044999,14]
[392158674,1761220246501,-1000.0,0.00044999,120]
[392158675,1761220246510,-1177.65810365,0.00044999,60]
[392158676,1761220246521,-1177.65810365,0.00044999,60]
[392158677,1761220246530,-1177.65810365,0.00044999,60]
[392158678,1761220246540,-1177.65810365,0.00044999,60]
[392158679,1761220246550,-14695.35860034,0.00045,18]
[392158680,1761220246559,-205000.0,0.00045,120]
[392158681,1761220246568,-500000.0,0.00045,120]
[392158682,1761220246578,-1971.89,0.00045,14]
[392158683,1761220246587,-1000000.0,0.00045,120]
[392158684,1761220246597,-724421.75371842,0.00045,120]
[392158685,1761220246807,-64738.88038161,0.00045,120]
[392158686,1761220246818,-1595.02069104,0.00045,120]
[392158687,1761220246830,-8556.83530138,0.00045,120]
[392158688,1761220246841,-8947.21879473,0.00045,120]
[392158689,1761220246852,-8943.78386462,0.00045,120]
[392158690,1761220246863,-9077.54866152,0.00045,120]
[392158691,1761220246874,-8943.84023489,0.00045,120]
[392158692,1761220246885,-747.12535247,0.00045,120]
[392158693,1761220246997,-1000.0,0.00043788,2]
[392158694,1761220247006,-250.0,0.00043977,3]
[392158695,1761220247016,-250.0,0.00043977,3]
[392158696,1761220247026,-250.0,0.00043977,3]
[392158697,1761220247035,-512.84923515,0.0004401,15]
[392158698,1761220247045,-403.76174363,0.0004496,2]
[392158699,1761220247055,-68213.69093631,0.00045,120]
[392158700,1761220247135,-283.4055,0.00045,120]
[392158701,1761220247528,-943.76970174,0.00045,120]
[392158702,1761220247567,-338.42948133,0.00045,120]
[392158703,1761220247581,-537.7522,0.00045,120]
[392158704,1761220247592,-366.96963075,0.00045,120]
[392158705,1761220247603,-485.29999995,0.00045,120]
[392158712,1761220251149,-92858.67554924,0.00045,120]
[392158713,1761220251159,-75608.03563671,0.00045,120]
[392158714,1761220251170,-2926.34885632,0.00045,120]
[392158715,1761220251181,-4807.185,0.00045,120]
[392158716,1761220251192,-1663.970066,0.00045,120]
[392158717,1761220251267,-250.0,0.00043977,3]
[392158718,1761220251277,-205.38731998,0.00043977,3]
[392158719,1761220251289,-44.61268002,0.00043977,3]
[392158720,1761220251299,-250.0,0.00043977,3]
[392158721,1761220251309,-103.25738842,0.00043977,3]
[392158730,1761220382942,916.90690869,0.00026171,120]
[392158731,1761220383893,195.0,0.00026171,120]
[392158732,1761220383991,195.0,0.00024841,120]
[392158733,1761220385151,300.0,0.00026171,120]
[392158734,1761220385244,198.14221557,0.00024841,120]
[392158747,1761220589599,-175.04269472,0.00023792,2]
[392158748,1761220591665,-184.51579586,0.00023792,2]
[392158749,1761220594241,-140.44150942,0.00023792,2]
[392158750,1761220594264,-50.829275,0.00024932,2]
[392158751,1761220596587,-201.30880131,0.00024932,2]
[392158755,1761220687003,195.0,0.00025411,120]
[392158758,1761220816615,250.0,0.00017,2]
[392158759,1761220817862,300.0,0.00019,2]
[392158762,1761220825896,240.67,0.00013699,2]
[392158771,1761220939063,-240.67,0.00020187,2]
[392158795,1761221230121,-158.06650487,0.00024932,2]
[392158797,1761221244130,-269.69986838,0.00024932,2]
[392158803,1761221346084,-72.23362675,0.00024932,2]
[392158804,1761221346106,-500.0,0.00024932,2]
[392158805,1761221346127,-304.60928756,0.00024932,2]
[392158806,1761221346147,-500.0,0.00024932,2]
[392158807,1761221346168,-678.40622569,0.00025,2]
[392158808,1761221351246,-332.42377431,0.00025,2]
[392158809,1761221351266,-195.57,0.0002589,2]
[392158810,1761221351287,-240.67,0.00026676,2]
[392158811,1761221351308,-1200.0,0.00026999,2]
[392158812,1761221351331,-300.0,0.00027424,2]
[392158813,1761221351350,-212.0,0.00027424,2]
[392158814,1761221351371,-1022.0,0.00027424,2]
[392158815,1761221351392,-195.0,0.00027425,120]
[392158816,1761221351414,-195.0,0.00027425,120]
[392158817,1761221351434,-250.0,0.00027425,2]
[392158818,1761221351454,-428.156915,0.00029485,2]
[392158819,1761221351474,-150.0,0.00030459,2]
[392158820,1761221351493,-300.0,0.00030726,2]
[392158821,1761221351512,-151.0,0.00030727,2]
[392158822,1761221351532,-151.0,0.00030727,2]
[392158823,1761221351552,-151.0,0.00030727,2]
[392158824,1761221351571,-151.0,0.00030727,2]
[392158825,1761221351594,-151.0,0.00030727,2]
[392158826,1761221351615,-151.0,0.00030727,2]
[392158827,1761221351635,-151.0,0.00030727,2]
[392158828,1761221351654,-151.0,0.00030727,2]
[392158829,1761221351675,-154.10692146,0.00030727,2]
[392158830,1761221351857,-151.0,0.00030727,2]
[392158831,1761221351879,-151.0,0.00030727,2]
[392158832,1761221351901,-151.0,0.00030727,2]
[392158833,1761221351921,-151.0,0.00030727,2]
[392158834,1761221351941,-151.0,0.00030727,2]
[392158835,1761221351970,-151.0,0.00030727,2]
[392158836,1761221351989,-151.0,0.00030727,2]
[392158837,1761221352009,-151.0,0.00030727,2]
[392158838,1761221352030,-151.0,0.00030727,2]
[392158839,1761221352052,-162.88643894,0.00030727,2]
[392158840,1761221352073,-500.0,0.000308,5]
[392158841,1761221352094,-500.0,0.000308,5]
[392158842,1761221352114,-509.46441382,0.000308,5]
[392158843,1761221352135,-240.67,0.00033165,2]
[392158844,1761221352155,-251.85940406,0.00033326,2]
[392158845,1761221352180,-170.61,0.00034088,2]
[392158846,1761221352202,-1530.0,0.000344,5]
[392158847,1761221352224,-166.66,0.00038374,30]
[392158848,1761221361071,-166.66,0.00039182,30]
[392158849,1761221361092,-240.67,0.00039654,2]
[392158850,1761221361112,-166.66,0.0003999,30]
[392158851,1761221361131,-178.05,0.0004004,120]
[392158852,1761221361152,-500.0,0.00040337,31]
[392158853,1761221361172,-306.9316284,0.00040337,7]
[392158854,1761221361194,-500.0,0.00040337,31]
[392158855,1761221361215,-500.0,0.00040337,31]
[392158856,1761221361238,-500.0,0.00040337,31]
[392158857,1761221361260,-500.0,0.00040337,31]
[392158858,1761221361281,-500.0,0.00040337,31]
[392158859,1761221361303,-500.0,0.00040337,31]
[392158860,1761221361324,-500.0,0.00040337,31]
[392158861,1761221361345,-476.9550756,0.00040337,31]
[392158862,1761221361490,-23.0449244,0.00040337,31]
[392158863,1761221361511,-500.0,0.00040337,31]
[392158864,1761221361532,-500.0,0.00040337,31]
[392158865,1761221361554,-500.0,0.00040337,31]
[392158866,1761221361575,-500.0,0.00040337,31]
[392158867,1761221361598,-489.39533965,0.00040337,31]
[392158868,1761221361619,-500.0,0.00040337,31]
[392158869,1761221361640,-500.0,0.00040337,31]
[392158870,1761221361660,-500.0,0.00040337,31]
[392158871,1761221361681,-500.0,0.00040337,31]
[392158872,1761221361702,-500.0,0.00040337,31]
[392158873,1761221361722,-500.0,0.00040337,31]
[392158874,1761221361742,-500.0,0.00040337,31]
[392158875,1761221361761,-1987.53,0.00040338,2]
[392158876,1761221361780,-245.28,0.00040428,2]
[392158877,1761221361800,-150.0,0.00040488,4]
[392158878,1761221361819,-150.0,0.00040488,4]
[392158879,1761221361837,-150.0,0.00040488,4]
[392158880,1761221361856,-150.0,0.00040488,4]
[392158881,1761221361874,-150.0,0.00040488,4]
[392158882,1761221361893,-150.0,0.00040488,4]
[392158883,1761221361912,-150.0,0.00040488,4]
[392158884,1761221361931,-150.0,0.00040488,4]
[392158885,1761221361951,-150.0,0.00040488,4]
[392158886,1761221361976,-150.0,0.00040488,4]
[392158887,1761221361997,-150.0,0.00040488,4]
[392158901,1761221431847,-245.0,0.00040701,2]
[392158902,1761221431856,-546.14462209,0.00040779,2]
[392158903,1761221431868,-1626.68131529,0.00040779,2]
[392158904,1761221431891,-1995.73211707,0.00040779,2]
[392158905,1761221431906,-1305.0,0.00040779,2]
[392158906,1761221431917,-940.24194555,0.00040779,2]
[392158907,1761221431927,-166.66,0.00040797,30]
[392158908,1761221431937,-245.0,0.00041053,120]
[392158909,1761221431946,-200.0,0.00041096,20]
[392158910,1761221431956,-245.0,0.00041448,7]
[392158911,1761221431966,-245.0,0.00041496,7]
[392158912,1761221431975,-245.0,0.00041584,2]
[392158913,1761221431985,-166.66,0.00041605,30]
[392158914,1761221431994,-2459.0,0.00041697,2]
[392158915,1761221432009,-6255.82,0.00041902,2]
[392158916,1761221432018,-332.2,0.00041902,2]
[392158917,1761221432027,-150.0,0.00041987,30]
[392158918,1761221432037,-150.0,0.00041987,30]
[392158919,1761221432047,-401.54,0.00042145,63]
[392158920,1761221432060,-267.64,0.00042146,7]
[392158921,1761221432070,-245.0,0.00042197,120]
[392158922,1761221432081,-765.6,0.00042375,120]
[392158923,1761221432091,-166.66,0.00042413,30]
[392158924,1761221432100,-245.0,0.00042545,2]
[392158925,1761221432111,-1000.0,0.00042707,2]
[392158926,1761221432120,-150.0,0.00042737,30]
[392158927,1761221432131,-150.0,0.00042737,30]
[392158928,1761221432141,-150.0,0.00042737,30]
[392158929,1761221432151,-245.0,0.00042907,2]
[392158930,1761221432160,-666.0,0.00043087,20]
[392158931,1761221432171,-245.0,0.00043291,7]
[392158932,1761221432181,-245.0,0.00043443,2]